[Event "*** Titled Tuesday Blitz"]
[Site "Chess.com"]
[Date "2020.04.28"]
[Round "1"]
[White "BillieKimbah"]
[Black "ega2006"]
[Result "1-0"]
[WhiteElo "2853"]
[BlackElo "2437"]
[TimeControl "180+1"]
[EndTime "10:06:49 PDT"]
[Termination "BillieKimbah won by checkmate"]

1. d4 {[%clk 0:03:00.9]} 1... Nf6 {[%clk 0:02:59.4]} 2. c4 {[%clk 0:03:00.6]}
2... g6 {[%clk 0:02:58.9]} 3. Nc3 {[%clk 0:02:58.3]} 3... Bg7 {[%clk 0:02:57.9]}
4. e4 {[%clk 0:02:57.9]} 4... d6 {[%clk 0:02:57.8]} 5. Be2 {[%clk 0:02:57.3]}
5... O-O {[%clk 0:02:57.6]} 6. h4 {[%clk 0:02:57.4]} 6... a6 {[%clk 0:02:47.5]}
7. h5 {[%clk 0:02:55.4]} 7... c5 {[%clk 0:02:47.3]} 8. dxc5 {[%clk 0:02:52.1]}
8... dxc5 {[%clk 0:02:45.4]} 9. Qxd8 {[%clk 0:02:50.1]} 9... Rxd8 {[%clk
0:02:46.3]} 10. h6 {[%clk 0:02:49]} 10... Bh8 {[%clk 0:02:44.6]} 11. e5 {[%clk
0:02:48.7]} 11... Nfd7 {[%clk 0:02:35.3]} 12. f4 {[%clk 0:02:48.6]} 12... Nc6
{[%clk 0:02:35.6]} 13. Nf3 {[%clk 0:02:44.3]} 13... Nf8 {[%clk 0:02:35.5]} 14.
Be3 {[%clk 0:02:40]} 14... Ne6 {[%clk 0:02:15.2]} 15. Nd5 {[%clk 0:02:38.6]}
15... Kf8 {[%clk 0:01:01.3]} 16. O-O-O {[%clk 0:01:47.1]} 16... b5 {[%clk
0:00:46.2]} 17. Nb6 {[%clk 0:01:35.8]} 17... Rxd1+ {[%clk 0:00:21.5]} 18. Rxd1
{[%clk 0:01:36.7]} 18... Rb8 {[%clk 0:00:21.8]} 19. Nxc8 {[%clk 0:01:33.9]}
19... Rxc8 {[%clk 0:00:21.6]} 20. cxb5 {[%clk 0:01:33.2]} 20... axb5 {[%clk
0:00:22.5]} 21. Bxb5 {[%clk 0:01:33.1]} 21... Ncd4 {[%clk 0:00:21.1]} 22. Bd7
{[%clk 0:01:25.4]} 22... Ra8 {[%clk 0:00:10.3]} 23. Bxe6 {[%clk 0:01:24]} 23...
Nxe6 {[%clk 0:00:11.2]} 24. a3 {[%clk 0:01:21]} 24... f6 {[%clk 0:00:09.3]} 25.
Kc2 {[%clk 0:01:18.3]} 25... Ra4 {[%clk 0:00:07.1]} 26. Rd7 {[%clk 0:00:45.5]}
26... fxe5 {[%clk 0:00:05.6]} 27. fxe5 {[%clk 0:00:44.8]} 27... Re4 {[%clk
0:00:05]} 28. Bg5 {[%clk 0:00:33.7]} 28... Nxg5 {[%clk 0:00:03]} 29. Rd8+ {[%clk
0:00:31.7]} 29... Kf7 {[%clk 0:00:02.6]} 30. Nxg5# {[%clk 0:00:32.6]} 1-0

[Event "*** Titled Tuesday Blitz"]
[Site "Chess.com"]
[Date "2020.04.28"]
[Round "1"]
[White "xamax2000"]
[Black "crazy_but_lazy"]
[Result "1-0"]
[WhiteElo "2700"]
[BlackElo "2358"]
[TimeControl "180+1"]
[EndTime "10:06:49 PDT"]
[Termination "xamax2000 won by resignation"]

1. e4 {[%clk 0:02:56.3]} 1... c6 {[%clk 0:02:59]} 2. d4 {[%clk 0:02:54.9]} 2...
d5 {[%clk 0:02:58.8]} 3. e5 {[%clk 0:02:51.2]} 3... c5 {[%clk 0:02:58.2]} 4. Nf3
{[%clk 0:02:49.5]} 4... cxd4 {[%clk 0:02:33.2]} 5. Nxd4 {[%clk 0:02:49.1]} 5...
e6 {[%clk 0:02:33.4]} 6. Nd2 {[%clk 0:02:47.4]} 6... Nc6 {[%clk 0:02:25]} 7.
N2f3 {[%clk 0:02:21.4]} 7... Bc5 {[%clk 0:02:18.1]} 8. Nxc6 {[%clk 0:02:08.6]}
8... bxc6 {[%clk 0:02:16.5]} 9. Bd3 {[%clk 0:02:08.4]} 9... Ne7 {[%clk
0:02:14.9]} 10. Qe2 {[%clk 0:02:07.5]} 10... a5 {[%clk 0:02:10.6]} 11. Bd2
{[%clk 0:02:01.8]} 11... Qb6 {[%clk 0:02:01.2]} 12. O-O {[%clk 0:01:46.2]} 12...
Ba6 {[%clk 0:01:56.4]} 13. c4 {[%clk 0:01:36.7]} 13... h6 {[%clk 0:01:35.5]} 14.
b3 {[%clk 0:01:28.2]} 14... O-O {[%clk 0:01:32.6]} 15. Rab1 {[%clk 0:01:24.4]}
15... Rfd8 {[%clk 0:01:20.1]} 16. Rfd1 {[%clk 0:01:20.7]} 16... Bb4 {[%clk
0:00:50.3]} 17. Be3 {[%clk 0:01:18.9]} 17... Bc5 {[%clk 0:00:46.9]} 18. Nd4
{[%clk 0:00:54.5]} 18... dxc4 {[%clk 0:00:27.9]} 19. bxc4 {[%clk 0:00:54.2]}
19... Qa7 {[%clk 0:00:25.8]} 20. Nc2 {[%clk 0:00:54.1]} 20... Bxe3 {[%clk
0:00:18.2]} 21. Nxe3 {[%clk 0:00:54.7]} 21... Rd7 {[%clk 0:00:18.6]} 22. Be4
{[%clk 0:00:28.4]} 22... Rad8 {[%clk 0:00:18.2]} 23. Rxd7 {[%clk 0:00:28.1]}
23... Rxd7 {[%clk 0:00:18.1]} 24. h4 {[%clk 0:00:27]} 24... Rb7 {[%clk 0:00:17]}
25. Rd1 {[%clk 0:00:26.6]} 25... Rd7 {[%clk 0:00:17.3]} 26. Rd6 {[%clk 0:00:26]}
26... g6 {[%clk 0:00:08.6]} 27. Qd2 {[%clk 0:00:23.9]} 27... Rb7 {[%clk
0:00:06.8]} 28. Ng4 {[%clk 0:00:22.4]} 28... Kg7 {[%clk 0:00:06.6]} 29. Qxh6+
{[%clk 0:00:22]} 1-0

[Event "*** Titled Tuesday Blitz"]
[Site "Chess.com"]
[Date "2020.04.28"]
[Round "1"]
[White "IAgrest"]
[Black "MishkaFighter"]
[Result "0-1"]
[WhiteElo "2256"]
[BlackElo "2588"]
[TimeControl "180+1"]
[EndTime "10:06:51 PDT"]
[Termination "MishkaFighter won on time"]

1. e4 {[%clk 0:03:00]} 1... g6 {[%clk 0:02:59.8]} 2. d4 {[%clk 0:02:57]} 2...
Bg7 {[%clk 0:03:00.7]} 3. Nc3 {[%clk 0:02:56.6]} 3... a6 {[%clk 0:03:00.7]} 4.
Nf3 {[%clk 0:02:53.2]} 4... b5 {[%clk 0:02:59.7]} 5. Bd3 {[%clk 0:02:52]} 5...
d6 {[%clk 0:02:58.9]} 6. a4 {[%clk 0:02:48]} 6... b4 {[%clk 0:02:54.1]} 7. Ne2
{[%clk 0:02:48]} 7... Bb7 {[%clk 0:02:51.7]} 8. O-O {[%clk 0:02:47]} 8... Nd7
{[%clk 0:02:51.2]} 9. Re1 {[%clk 0:02:38]} 9... c5 {[%clk 0:02:50.3]} 10. c3
{[%clk 0:02:37.2]} 10... Ngf6 {[%clk 0:02:43.1]} 11. Ng3 {[%clk 0:02:30.4]}
11... O-O {[%clk 0:02:42.4]} 12. h4 {[%clk 0:02:14.9]} 12... Rc8 {[%clk
0:02:34.7]} 13. h5 {[%clk 0:02:05.9]} 13... Qb6 {[%clk 0:02:21.6]} 14. a5 {[%clk
0:01:43.5]} 14... Qc7 {[%clk 0:02:19.8]} 15. cxb4 {[%clk 0:01:32.1]} 15... cxd4
{[%clk 0:02:10.6]} 16. Bg5 {[%clk 0:01:23.8]} 16... e5 {[%clk 0:01:52.4]} 17.
Qd2 {[%clk 0:01:21.9]} 17... d5 {[%clk 0:01:50.2]} 18. exd5 {[%clk 0:01:09.1]}
18... Nxd5 {[%clk 0:01:43.9]} 19. hxg6 {[%clk 0:00:46]} 19... hxg6 {[%clk
0:01:41.8]} 20. Bh6 {[%clk 0:00:44.4]} 20... Nf4 {[%clk 0:01:32]} 21. Bxg7
{[%clk 0:00:20.7]} 21... Kxg7 {[%clk 0:01:32.9]} 22. Rac1 {[%clk 0:00:20.2]}
22... Qd6 {[%clk 0:01:28]} 23. Ne4 {[%clk 0:00:19.7]} 23... Qe7 {[%clk
0:01:13.8]} 24. Bb1 {[%clk 0:00:16.6]} 24... Rh8 {[%clk 0:01:02.7]} 25. Rxc8
{[%clk 0:00:16]} 25... Rxc8 {[%clk 0:01:01.8]} 26. Nxd4 {[%clk 0:00:14.7]} 26...
Nxg2 {[%clk 0:00:54.6]} 27. Kxg2 {[%clk 0:00:06.3]} 27... exd4 {[%clk
0:00:53.9]} 28. Qxd4+ {[%clk 0:00:06.1]} 28... Kg8 {[%clk 0:00:46.7]} 29. Rh1
{[%clk 0:00:05.5]} 29... Nf6 {[%clk 0:00:43.6]} 30. f3 {[%clk 0:00:04.9]} 30...
Bxe4 {[%clk 0:00:40.6]} 31. fxe4 {[%clk 0:00:04.5]} 31... Rd8 {[%clk 0:00:40.4]}
32. Qe3 {[%clk 0:00:04.2]} 32... Qe5 {[%clk 0:00:35.3]} 33. Qh6 {[%clk
0:00:03.7]} 33... Nh5 {[%clk 0:00:35.7]} 0-1

[Event "*** Titled Tuesday Blitz"]
[Site "Chess.com"]
[Date "2020.04.28"]
[Round "1"]
[White "Soltan49"]
[Black "Abdimalik_Abdisalimov"]
[Result "0-1"]
[WhiteElo "2417"]
[BlackElo "2794"]
[TimeControl "180+1"]
[EndTime "10:06:52 PDT"]
[Termination "Abdimalik_Abdisalimov won by resignation"]

1. g3 {[%clk 0:02:59.9]} 1... g6 {[%clk 0:02:55.4]} 2. Bg2 {[%clk 0:03:00.8]}
2... Bg7 {[%clk 0:02:55.9]} 3. Nf3 {[%clk 0:03:01]} 3... c6 {[%clk 0:02:56.2]}
4. O-O {[%clk 0:03:01.9]} 4... d6 {[%clk 0:02:54.2]} 5. c4 {[%clk 0:03:02]} 5...
Nf6 {[%clk 0:02:54.6]} 6. Nc3 {[%clk 0:03:01.4]} 6... O-O {[%clk 0:02:55.5]} 7.
d4 {[%clk 0:03:01.1]} 7... Nbd7 {[%clk 0:02:55.8]} 8. Re1 {[%clk 0:02:57.8]}
8... e5 {[%clk 0:02:55.8]} 9. e4 {[%clk 0:02:55.9]} 9... Qb6 {[%clk 0:02:47.6]}
10. h3 {[%clk 0:02:43.2]} 10... Re8 {[%clk 0:02:27.3]} 11. dxe5 {[%clk
0:02:39.8]} 11... dxe5 {[%clk 0:02:26.6]} 12. b3 {[%clk 0:02:32.1]} 12... Nc5
{[%clk 0:02:24.3]} 13. Be3 {[%clk 0:02:28.4]} 13... Qa5 {[%clk 0:02:21.6]} 14.
Bxc5 {[%clk 0:02:22.7]} 14... Qxc5 {[%clk 0:02:20.9]} 15. Qc2 {[%clk 0:02:21.4]}
15... Bf8 {[%clk 0:02:10.5]} 16. Rad1 {[%clk 0:02:17.5]} 16... Qa5 {[%clk
0:02:10.5]} 17. Nb1 {[%clk 0:01:40.5]} 17... Be6 {[%clk 0:01:49.8]} 18. Kh2
{[%clk 0:01:39.6]} 18... Rad8 {[%clk 0:01:47.2]} 19. Rxd8 {[%clk 0:01:39.1]}
19... Rxd8 {[%clk 0:01:48.1]} 20. Rd1 {[%clk 0:01:39.3]} 20... Rxd1 {[%clk
0:01:46.6]} 21. Qxd1 {[%clk 0:01:40.2]} 21... Nxe4 {[%clk 0:01:46.8]} 22. Qe2
{[%clk 0:01:39.3]} 22... f5 {[%clk 0:01:43]} 23. Nbd2 {[%clk 0:01:20]} 23...
Nxd2 {[%clk 0:01:41.2]} 24. Nxd2 {[%clk 0:01:20.9]} 24... e4 {[%clk 0:01:30]}
25. f3 {[%clk 0:01:17.4]} 25... Bd6 {[%clk 0:01:29.9]} 26. fxe4 {[%clk
0:01:13.1]} 26... f4 {[%clk 0:01:29.8]} 27. Nf3 {[%clk 0:00:57.2]} 27... fxg3+
{[%clk 0:01:29.3]} 28. Kh1 {[%clk 0:00:57.5]} 28... Bf4 {[%clk 0:01:26.2]} 29.
Nd4 {[%clk 0:00:46.6]} 29... Bf7 {[%clk 0:01:14.2]} 30. Qf3 {[%clk 0:00:42.8]}
30... Qe1+ {[%clk 0:01:10.7]} 31. Bf1 {[%clk 0:00:42.2]} 31... Be5 {[%clk
0:01:04.3]} 32. Ne2 {[%clk 0:00:38.9]} 32... h5 {[%clk 0:00:58.8]} 33. Kg2
{[%clk 0:00:22.4]} 33... Qd2 {[%clk 0:00:58.6]} 34. Kg1 {[%clk 0:00:20.4]} 34...
h4 {[%clk 0:00:50.8]} 35. a4 {[%clk 0:00:20]} 35... a5 {[%clk 0:00:49.9]} 36.
Qg4 {[%clk 0:00:17.9]} 36... Qe3+ {[%clk 0:00:48]} 37. Kg2 {[%clk 0:00:15.7]}
37... Qf2+ {[%clk 0:00:47.2]} 0-1

[Event "*** Titled Tuesday Blitz"]
[Site "Chess.com"]
[Date "2020.04.28"]
[Round "1"]
[White "Leonid_Starozhilov"]
[Black "Saloni1299"]
[Result "0-1"]
[WhiteElo "2601"]
[BlackElo "2314"]
[TimeControl "180+1"]
[EndTime "10:06:53 PDT"]
[Termination "Saloni1299 won by checkmate"]

1. b3 {[%clk 0:02:57.7]} 1... e5 {[%clk 0:02:59]} 2. Bb2 {[%clk 0:02:58.6]} 2...
Nc6 {[%clk 0:02:57.4]} 3. e3 {[%clk 0:02:58.9]} 3... Nf6 {[%clk 0:02:56.2]} 4.
Bb5 {[%clk 0:02:59.1]} 4... Bd6 {[%clk 0:02:55.3]} 5. Ne2 {[%clk 0:02:59.2]}
5... a6 {[%clk 0:02:54.2]} 6. Bxc6 {[%clk 0:02:59.3]} 6... dxc6 {[%clk
0:02:54.7]} 7. Nbc3 {[%clk 0:03:00]} 7... O-O {[%clk 0:02:54]} 8. Ng3 {[%clk
0:02:59.7]} 8... Nd5 {[%clk 0:02:52.9]} 9. O-O {[%clk 0:02:30.5]} 9... f5 {[%clk
0:02:51.7]} 10. Nxd5 {[%clk 0:02:27.7]} 10... cxd5 {[%clk 0:02:51.8]} 11. f4
{[%clk 0:02:28.3]} 11... Qe7 {[%clk 0:02:50.1]} 12. fxe5 {[%clk 0:02:27]} 12...
Bxe5 {[%clk 0:02:50.7]} 13. Bxe5 {[%clk 0:02:27.3]} 13... Qxe5 {[%clk
0:02:51.2]} 14. Qf3 {[%clk 0:02:25.9]} 14... g6 {[%clk 0:02:51.2]} 15. Qf4
{[%clk 0:02:26]} 15... Qe7 {[%clk 0:02:46.2]} 16. Rf2 {[%clk 0:02:20.6]} 16...
b6 {[%clk 0:02:45.6]} 17. Raf1 {[%clk 0:02:19.1]} 17... Bb7 {[%clk 0:02:45.7]}
18. Qh6 {[%clk 0:02:16.2]} 18... Qg7 {[%clk 0:02:44.2]} 19. Qxg7+ {[%clk
0:02:05.4]} 19... Kxg7 {[%clk 0:02:45.1]} 20. Ne2 {[%clk 0:01:59]} 20... c5
{[%clk 0:02:44.5]} 21. Nf4 {[%clk 0:01:58.4]} 21... Rfe8 {[%clk 0:02:44.3]} 22.
c3 {[%clk 0:01:56.6]} 22... d4 {[%clk 0:02:42.3]} 23. exd4 {[%clk 0:01:38.8]}
23... cxd4 {[%clk 0:02:43.2]} 24. cxd4 {[%clk 0:01:18.4]} 24... Rad8 {[%clk
0:02:42.6]} 25. Rc1 {[%clk 0:01:14.9]} 25... Re7 {[%clk 0:02:41.1]} 26. Re2
{[%clk 0:01:06.2]} 26... Rxe2 {[%clk 0:02:35.2]} 27. Nxe2 {[%clk 0:01:07.1]}
27... Rd7 {[%clk 0:02:33.7]} 28. Kf2 {[%clk 0:01:06.3]} 28... Be4 {[%clk
0:02:32.7]} 29. Rc3 {[%clk 0:00:53.3]} 29... Re7 {[%clk 0:02:31.7]} 30. Nf4
{[%clk 0:00:47]} 30... Kf6 {[%clk 0:02:27.4]} 31. d3 {[%clk 0:00:31.6]} 31...
Bb7 {[%clk 0:02:24.4]} 32. h4 {[%clk 0:00:22.7]} 32... Rd7 {[%clk 0:02:21.4]}
33. d5 {[%clk 0:00:20]} 33... h6 {[%clk 0:02:20.1]} 34. d4 {[%clk 0:00:13]}
34... g5 {[%clk 0:02:19]} 35. hxg5+ {[%clk 0:00:13.5]} 35... hxg5 {[%clk
0:02:18.8]} 36. Ne2 {[%clk 0:00:10]} 36... Bxd5 {[%clk 0:02:16.4]} 37. Re3
{[%clk 0:00:08.4]} 37... Be4 {[%clk 0:02:12.5]} 38. Rc3 {[%clk 0:00:06.2]} 38...
f4 {[%clk 0:02:10.4]} 39. Rc8 {[%clk 0:00:05.3]} 39... Kf5 {[%clk 0:02:04.9]}
40. Rf8+ {[%clk 0:00:05.1]} 40... Kg4 {[%clk 0:02:04.7]} 41. Rb8 {[%clk
0:00:05.4]} 41... b5 {[%clk 0:02:03.4]} 42. Rb6 {[%clk 0:00:05.7]} 42... Bd3
{[%clk 0:02:00.9]} 43. Rxa6 {[%clk 0:00:04.6]} 43... Bxe2 {[%clk 0:02:00.8]} 44.
Kxe2 {[%clk 0:00:05.2]} 44... Rxd4 {[%clk 0:02:01.4]} 45. a4 {[%clk 0:00:05.2]}
45... bxa4 {[%clk 0:02:00.9]} 46. Rxa4 {[%clk 0:00:05.3]} 46... Rd6 {[%clk
0:01:59.8]} 47. Ra3 {[%clk 0:00:02.9]} 47... Kg3 {[%clk 0:01:58.4]} 48. b4+
{[%clk 0:00:03]} 48... Kxg2 {[%clk 0:01:58]} 49. b5 {[%clk 0:00:03.6]} 49... g4
{[%clk 0:01:57.6]} 50. Rb3 {[%clk 0:00:03.1]} 50... f3+ {[%clk 0:01:55.8]} 51.
Ke3 {[%clk 0:00:03.7]} 51... f2 {[%clk 0:01:52.5]} 52. Rb2 {[%clk 0:00:04.1]}
52... Re6+ {[%clk 0:01:52.6]} 53. Kf4 {[%clk 0:00:04.3]} 53... Kg1 {[%clk
0:01:49.1]} 54. Kf5 {[%clk 0:00:03.4]} 54... Rb6 {[%clk 0:01:47.9]} 55. Kxg4
{[%clk 0:00:01.1]} 55... f1=Q {[%clk 0:01:47.8]} 56. Kg3 {[%clk 0:00:01.7]}
56... Qd3+ {[%clk 0:01:45.1]} 57. Kh4 {[%clk 0:00:01.9]} 57... Rh6+ {[%clk
0:01:43.7]} 58. Kg5 {[%clk 0:00:02.3]} 58... Rg6+ {[%clk 0:01:43.8]} 59. Kh5
{[%clk 0:00:02.8]} 59... Qf5+ {[%clk 0:01:43.1]} 60. Kh4 {[%clk 0:00:03.4]}
60... Qg4# {[%clk 0:01:44]} 0-1

[Event "*** Titled Tuesday Blitz"]
[Site "Chess.com"]
[Date "2020.04.28"]
[Round "1"]
[White "Zq1"]
[Black "ShadowJolteon"]
[Result "1-0"]
[WhiteElo "2587"]
[BlackElo "2257"]
[TimeControl "180+1"]
[EndTime "10:06:54 PDT"]
[Termination "Zq1 won on time"]

1. d4 {[%clk 0:02:59.6]} 1... Nf6 {[%clk 0:02:59]} 2. c4 {[%clk 0:02:58.9]} 2...
e6 {[%clk 0:02:58.4]} 3. Nc3 {[%clk 0:02:57.2]} 3... Bb4 {[%clk 0:02:57.7]} 4.
e3 {[%clk 0:02:55.9]} 4... b6 {[%clk 0:02:57.7]} 5. Ne2 {[%clk 0:02:48.4]} 5...
Bb7 {[%clk 0:02:57.7]} 6. a3 {[%clk 0:02:48.4]} 6... Bxc3+ {[%clk 0:02:55.2]} 7.
Nxc3 {[%clk 0:02:48.1]} 7... d5 {[%clk 0:02:56.1]} 8. b3 {[%clk 0:02:36.6]} 8...
O-O {[%clk 0:02:55.1]} 9. a4 {[%clk 0:02:34.2]} 9... Nbd7 {[%clk 0:02:54.6]} 10.
Ba3 {[%clk 0:02:16.5]} 10... c5 {[%clk 0:02:51.2]} 11. Rc1 {[%clk 0:02:04.5]}
11... Rc8 {[%clk 0:02:50]} 12. f3 {[%clk 0:02:00.7]} 12... Re8 {[%clk
0:02:49.1]} 13. Be2 {[%clk 0:01:55.8]} 13... cxd4 {[%clk 0:02:39.8]} 14. exd4
{[%clk 0:01:55.2]} 14... dxc4 {[%clk 0:02:39.9]} 15. bxc4 {[%clk 0:01:53.9]}
15... e5 {[%clk 0:02:37.1]} 16. Nb5 {[%clk 0:01:44.2]} 16... exd4 {[%clk
0:01:57.3]} 17. Nd6 {[%clk 0:01:42]} 17... Nh5 {[%clk 0:01:07.5]} 18. O-O {[%clk
0:01:04]} 18... Qe7 {[%clk 0:00:46.1]} 19. Nxc8 {[%clk 0:00:33.9]} 19... Qxa3
{[%clk 0:00:43.7]} 20. Nxa7 {[%clk 0:00:32.2]} 20... Qe3+ {[%clk 0:00:38.1]} 21.
Rf2 {[%clk 0:00:32]} 21... Nf4 {[%clk 0:00:35.2]} 22. Bf1 {[%clk 0:00:31.8]}
22... d3 {[%clk 0:00:19.9]} 23. Rb1 {[%clk 0:00:30.5]} 23... Ne2+ {[%clk
0:00:16]} 24. Bxe2 {[%clk 0:00:30.2]} 24... dxe2 {[%clk 0:00:16.6]} 25. Qe1
{[%clk 0:00:28.9]} 25... Nc5 {[%clk 0:00:15.7]} 26. Rb2 {[%clk 0:00:27.5]} 26...
Nd3 {[%clk 0:00:06.3]} 27. Qxe2 {[%clk 0:00:26.4]} 27... Qxf2+ {[%clk
0:00:03.3]} 28. Qxf2 {[%clk 0:00:25.7]} 28... Nxf2 {[%clk 0:00:04.2]} 29. Kxf2
{[%clk 0:00:25.2]} 29... Ra8 {[%clk 0:00:05.1]} 30. Nb5 {[%clk 0:00:23]} 30...
Rxa4 {[%clk 0:00:05]} 31. Nd6 {[%clk 0:00:23]} 1-0

[Event "*** Titled Tuesday Blitz"]
[Site "Chess.com"]
[Date "2020.04.28"]
[Round "1"]
[White "binbin239"]
[Black "Sanan_Sjugirov"]
[Result "0-1"]
[WhiteElo "2441"]
[BlackElo "2857"]
[TimeControl "180+1"]
[EndTime "10:06:55 PDT"]
[Termination "Sanan_Sjugirov won by resignation"]

1. d4 {[%clk 0:03:00]} 1... d5 {[%clk 0:02:59.7]} 2. c4 {[%clk 0:03:00.7]} 2...
e6 {[%clk 0:02:59.7]} 3. Nf3 {[%clk 0:03:00.9]} 3... c6 {[%clk 0:02:59.2]} 4.
Qc2 {[%clk 0:03:00.9]} 4... Nf6 {[%clk 0:02:58.7]} 5. g3 {[%clk 0:03:00.7]} 5...
dxc4 {[%clk 0:02:58.6]} 6. Qxc4 {[%clk 0:03:00.8]} 6... b5 {[%clk 0:02:59.1]} 7.
Qc2 {[%clk 0:03:01.3]} 7... Bb7 {[%clk 0:02:59.7]} 8. Bg2 {[%clk 0:03:01.9]}
8... Nbd7 {[%clk 0:02:59.5]} 9. O-O {[%clk 0:03:02.2]} 9... c5 {[%clk
0:02:55.1]} 10. a4 {[%clk 0:02:56.6]} 10... cxd4 {[%clk 0:02:53.4]} 11. axb5
{[%clk 0:02:55.6]} 11... Bc5 {[%clk 0:02:50.8]} 12. Nbd2 {[%clk 0:02:48.4]}
12... Rc8 {[%clk 0:02:31.6]} 13. Nb3 {[%clk 0:02:44.1]} 13... Bb6 {[%clk
0:02:31]} 14. Qd1 {[%clk 0:02:44.1]} 14... e5 {[%clk 0:02:21.7]} 15. Bd2 {[%clk
0:02:44.1]} 15... O-O {[%clk 0:02:04.8]} 16. Na5 {[%clk 0:02:36.2]} 16... Bxa5
{[%clk 0:01:33.7]} 17. Bxa5 {[%clk 0:02:35.7]} 17... Qe7 {[%clk 0:01:33.8]} 18.
Qa4 {[%clk 0:02:32.2]} 18... Nd5 {[%clk 0:01:07.3]} 19. Rfc1 {[%clk 0:02:27.6]}
19... N7b6 {[%clk 0:00:39.8]} 20. Qb3 {[%clk 0:02:19]} 20... h6 {[%clk
0:00:26.9]} 21. Nd2 {[%clk 0:02:10.7]} 21... Rxc1+ {[%clk 0:00:17.2]} 22. Rxc1
{[%clk 0:02:10.8]} 22... Re8 {[%clk 0:00:07.6]} 23. Nc4 {[%clk 0:02:07.5]} 23...
e4 {[%clk 0:00:05.3]} 24. Nxb6 {[%clk 0:02:04]} 24... axb6 {[%clk 0:00:06.1]}
25. Be1 {[%clk 0:02:02.3]} 25... f5 {[%clk 0:00:03.8]} 26. Qc4 {[%clk
0:02:01.5]} 26... Qe5 {[%clk 0:00:03.3]} 27. f4 {[%clk 0:01:47]} 27... Qf6
{[%clk 0:00:02.8]} 28. Bf2 {[%clk 0:01:45.8]} 28... Rc8 {[%clk 0:00:03.1]} 29.
Qxc8+ {[%clk 0:01:33.6]} 29... Bxc8 {[%clk 0:00:04]} 30. Rxc8+ {[%clk
0:01:34.1]} 30... Kh7 {[%clk 0:00:04.9]} 31. h3 {[%clk 0:01:32.3]} 31... d3
{[%clk 0:00:05]} 32. exd3 {[%clk 0:01:32.3]} 32... e3 {[%clk 0:00:05.4]} 33.
Bxd5 {[%clk 0:01:31.9]} 33... exf2+ {[%clk 0:00:05.8]} 34. Kxf2 {[%clk
0:01:32.3]} 34... Qxb2+ {[%clk 0:00:06.6]} 35. Kf3 {[%clk 0:01:32.8]} 35... Qxb5
{[%clk 0:00:06]} 36. Bc4 {[%clk 0:01:32.4]} 36... Qd7 {[%clk 0:00:05.2]} 37.
Bg8+ {[%clk 0:01:30.9]} 37... Kg6 {[%clk 0:00:05.2]} 38. Rc3 {[%clk 0:01:29.7]}
38... Qb7+ {[%clk 0:00:05.1]} 39. Ke3 {[%clk 0:01:29.3]} 39... Qe7+ {[%clk
0:00:06]} 40. Kf3 {[%clk 0:01:29.8]} 40... Qd6 {[%clk 0:00:06.4]} 41. Bc4 {[%clk
0:01:29.5]} 41... h5 {[%clk 0:00:06.5]} 42. h4 {[%clk 0:01:29.5]} 42... Kh6
{[%clk 0:00:06.9]} 43. Rb3 {[%clk 0:01:29.4]} 43... g6 {[%clk 0:00:07.3]} 44.
Rb5 {[%clk 0:01:29.6]} 44... Qc6+ {[%clk 0:00:07.6]} 45. Rd5 {[%clk 0:01:29.5]}
45... Qc7 {[%clk 0:00:08.5]} 46. Ke3 {[%clk 0:01:29.7]} 46... Qe7+ {[%clk
0:00:08.6]} 47. Re5 {[%clk 0:01:30.2]} 47... Qa3 {[%clk 0:00:09.5]} 48. Re6
{[%clk 0:01:30.2]} 48... Qc1+ {[%clk 0:00:09.7]} 49. Kf3 {[%clk 0:01:30.6]}
49... Qf1+ {[%clk 0:00:09.8]} 50. Ke3 {[%clk 0:01:31]} 50... Qg2 {[%clk
0:00:09.8]} 51. Rxb6 {[%clk 0:01:30.4]} 51... Qg1+ {[%clk 0:00:10.2]} 52. Kf3
{[%clk 0:01:30.7]} 52... Qxb6 {[%clk 0:00:11.1]} 53. Bf7 {[%clk 0:01:30.9]}
53... Qd4 {[%clk 0:00:11]} 54. Bc4 {[%clk 0:01:31.4]} 54... Kg7 {[%clk
0:00:11.5]} 55. Ke2 {[%clk 0:01:31.9]} 55... Kf6 {[%clk 0:00:12.4]} 56. Kd2
{[%clk 0:01:32.5]} 56... Qf2+ {[%clk 0:00:12.4]} 0-1

[Event "*** Titled Tuesday Blitz"]
[Site "Chess.com"]
[Date "2020.04.28"]
[Round "1"]
[White "MarcoRiehle"]
[Black "jaskol95"]
[Result "1-0"]
[WhiteElo "2603"]
[BlackElo "2273"]
[TimeControl "180+1"]
[EndTime "10:06:55 PDT"]
[Termination "MarcoRiehle won by resignation"]

1. e4 {[%clk 0:03:00.9]} 1... e6 {[%clk 0:02:59.9]} 2. c4 {[%clk 0:03:00.2]}
2... d5 {[%clk 0:02:58.3]} 3. cxd5 {[%clk 0:03:01.1]} 3... exd5 {[%clk
0:02:58.5]} 4. Qb3 {[%clk 0:03:01.5]} 4... Nf6 {[%clk 0:02:39.1]} 5. e5 {[%clk
0:02:59.9]} 5... Ne4 {[%clk 0:02:13.4]} 6. Nf3 {[%clk 0:02:59.5]} 6... Nc5
{[%clk 0:02:08.7]} 7. Qe3 {[%clk 0:02:58.2]} 7... Nc6 {[%clk 0:02:05.4]} 8. d4
{[%clk 0:02:56.8]} 8... Ne6 {[%clk 0:02:05.2]} 9. Nc3 {[%clk 0:02:53.8]} 9...
Bb4 {[%clk 0:02:02.8]} 10. Bd3 {[%clk 0:02:51.9]} 10... h6 {[%clk 0:02:01.3]}
11. O-O {[%clk 0:02:50.2]} 11... O-O {[%clk 0:01:59.8]} 12. Bd2 {[%clk
0:02:48.6]} 12... Bxc3 {[%clk 0:01:57.5]} 13. bxc3 {[%clk 0:02:46.3]} 13... Bd7
{[%clk 0:01:57.9]} 14. Bc2 {[%clk 0:02:38.1]} 14... Re8 {[%clk 0:01:44.9]} 15.
Ne1 {[%clk 0:02:18.1]} 15... Na5 {[%clk 0:01:41.5]} 16. f4 {[%clk 0:02:12.7]}
16... Nc4 {[%clk 0:01:41.4]} 17. Qd3 {[%clk 0:02:12.3]} 17... Nf8 {[%clk
0:01:36.3]} 18. f5 {[%clk 0:02:10.3]} 18... f6 {[%clk 0:01:19.4]} 19. Bf4 {[%clk
0:01:50.1]} 19... Bb5 {[%clk 0:01:16.8]} 20. Qg3 {[%clk 0:01:49]} 20... Kh7
{[%clk 0:01:10.6]} 21. Nf3 {[%clk 0:01:36.1]} 21... c6 {[%clk 0:01:09]} 22. Qh4
{[%clk 0:01:18]} 22... Na3 {[%clk 0:01:05.2]} 23. exf6 {[%clk 0:01:01.8]} 23...
Qxf6 {[%clk 0:00:54.3]} 24. Bg5 {[%clk 0:00:59.7]} 24... Qf7 {[%clk 0:00:37.5]}
25. Bxh6 {[%clk 0:00:56]} 25... Nxc2 {[%clk 0:00:20.6]} 26. Ng5+ {[%clk
0:00:55.5]} 26... Kg8 {[%clk 0:00:21.1]} 27. Nxf7 {[%clk 0:00:55.8]} 27... Kxf7
{[%clk 0:00:22]} 28. Qh5+ {[%clk 0:00:53.7]} 28... Kg8 {[%clk 0:00:19.8]} 29.
Qg5 {[%clk 0:00:53]} 29... g6 {[%clk 0:00:18.1]} 30. Bxf8 {[%clk 0:00:45.2]}
30... Bxf1 {[%clk 0:00:17.9]} 31. Bh6 {[%clk 0:00:40.8]} 31... Kf7 {[%clk
0:00:13.3]} 32. Rxf1 {[%clk 0:00:37.5]} 32... Rg8 {[%clk 0:00:08.7]} 33. fxg6+
{[%clk 0:00:37]} 33... Ke8 {[%clk 0:00:09.1]} 34. Qe5+ {[%clk 0:00:34.7]} 34...
Kd8 {[%clk 0:00:09.2]} 35. Qd6+ {[%clk 0:00:31.6]} 35... Kc8 {[%clk 0:00:09.2]}
36. Rf7 {[%clk 0:00:31.6]} 1-0